bitfinex-derivatives/quotes_BTCF0:USTF0_20240923
["timestamp","ask_amount","ask_price","bid_price","bid_amount"]
[1727097454647,0.079075,63241.0,63240.0,0.079074]
[1727097454847,0.258275,63241.0,63240.0,0.079074]
[1727097455042,0.781735,63241.0,63240.0,0.079074]
[1727097455243,0.079078,63238.0,63237.0,7e-05]
[1727097455447,0.158156,63238.0,63237.0,7e-05]
[1727097457249,0.158156,63238.0,63237.0,0.06329586]
[1727097457646,0.27731201,63238.0,63237.0,7e-05]
[1727097457947,0.28031201,63238.0,63237.0,7e-05]
[1727097459242,0.1867964,63238.0,63237.0,7e-05]
[1727097462651,0.9638,63238.0,63226.0,0.06692586]
[1727097462845,0.9638,63238.0,63208.0,0.3608]
[1727097462846,0.7216,63227.0,63210.0,0.01587895]
[1727097463046,0.13,63229.0,63201.0,0.3608]
[1727097463047,0.079118,63207.0,63201.0,0.3608]
[1727097463250,0.079118,63207.0,63196.0,0.13]
[1727097463251,0.13,63202.0,63196.0,0.01976335]
[1727097463451,0.3608,63205.0,63204.0,0.07912]
[1727097463644,0.3608,63205.0,63204.0,0.23385936]
[1727097464151,0.3608,63211.0,63204.0,0.15473936]
[1727097464355,0.3608,63211.0,63205.0,0.02473936]
[1727097464539,0.3608,63211.0,63210.0,0.079113]
[1727097464741,0.3608,63220.0,63210.0,0.12207054]
[1727097464941,0.3608,63220.0,63208.0,0.4908]
[1727097464942,0.3608,63220.0,63218.0,0.209103]
[1727097465347,0.3608,63225.0,63218.0,0.13]
[1727097465550,0.3608,63225.0,63210.0,0.09486443]
[1727097465551,0.3608,63225.0,63224.0,0.079095]
[1727097465755,0.3608,63225.0,63221.0,0.079098]
[1727097465955,0.4068,63228.0,63222.0,1.5]
[1727097466155,0.3608,63228.0,63227.0,0.209092]
[1727097466545,0.0037,63238.0,63227.0,0.13]
[1727097466742,0.3608,63245.0,63234.0,0.13]
[1727097466743,0.0037,63244.0,63234.0,0.13]
[1727097466948,0.3608,63245.0,63234.0,0.13]
[1727097467162,0.3608,63245.0,63234.0,0.20885845]
[1727097467552,0.3608,63245.0,63237.0,0.079079]
[1727097468160,0.3608,63245.0,63238.0,0.0478]
[1727097468161,0.439869,63245.0,63238.0,0.0478]
[1727097468756,0.13,63242.0,63238.0,0.0478]
[1727097469656,0.3608,63239.0,63233.0,0.12435845]
[1727097469858,0.13,63237.0,63233.0,0.0455]
[1727097470250,0.13,63237.0,63234.0,0.079082]
[1727097470950,0.13,63237.0,63235.0,0.079081]
[1727097471158,0.135,63237.0,63235.0,0.079081]
[1727097471454,0.135,63237.0,63236.0,0.07908]
[1727097471859,0.141,63237.0,63236.0,0.07908]
[1727097472465,0.135,63237.0,63236.0,0.07908]
[1727097472761,0.14,63237.0,63236.0,0.07908]
[1727097472966,0.139,63237.0,63236.0,0.07908]
[1727097473457,0.139,63237.0,63236.0,0.10380544]
[1727097473757,0.013,63237.0,63236.0,0.10380544]
[1727097474250,0.018,63237.0,63236.0,0.10480544]
[1727097474951,0.013,63237.0,63236.0,0.10380544]
[1727097475753,0.008,63237.0,63236.0,0.07908]
[1727097476589,0.079069,63246.0,63236.0,0.07908]
[1727097476590,0.3608,63255.0,63237.0,0.079079]
[1727097476769,0.3645,63255.0,63246.0,0.3608]
[1727097476953,0.3608,63255.0,63254.0,0.079058]
[1727097477160,0.13,63263.0,63257.0,0.079053]
[1727097477458,0.36284,63265.0,63256.0,0.13]
[1727097477656,0.3608,63265.0,63256.0,0.13]
[1727097477852,0.3608,63265.0,63264.0,0.079045]
[1727097478261,0.17273828,63276.0,63264.0,0.079045]
[1727097478262,0.36317157,63278.0,63264.0,1.565]
[1727097478558,0.209021,63284.0,63275.0,0.079031]
[1727097478756,0.13,63280.0,63270.0,0.569837]
[1727097478957,0.569825,63280.0,63270.0,0.3608]
[1727097479156,0.4908,63280.0,63273.0,0.079034]
[1727097480357,0.5048,63280.0,63273.0,0.079034]
[1727097480557,0.5048,63280.0,63270.0,0.3618]
[1727097480558,0.13,63276.0,63270.0,0.3618]
[1727097481456,0.13,63276.0,63273.0,0.001]
[1727097482059,0.141,63276.0,63270.0,0.002]
[1727097482266,0.13,63271.0,63270.0,0.001]
[1727097482768,0.683197,63271.0,63270.0,0.001]
[1727097483360,0.209037,63271.0,63270.0,0.001]
[1727097483570,0.13,63271.0,63270.0,0.001]
[1727097483759,0.3608,63271.0,63270.0,0.001]
[1727097483961,0.5048,63271.0,63269.0,0.079039]
[1727097484159,0.079039,63269.0,63264.0,0.439844]
[1727097484462,0.5048,63271.0,63264.0,0.3608]
[1727097484463,0.13,63265.0,63264.0,0.3608]
[1727097484860,0.209044,63265.0,63264.0,0.3608]
[1727097485263,0.209044,63265.0,63264.0,0.3618]
[1727097485664,0.209044,63265.0,63264.0,0.001]
[1727097486467,0.079056,63255.0,63254.0,0.405858]
[1727097486665,0.209056,63255.0,63254.0,0.079058]
[1727097486864,0.07906,63253.0,63244.0,0.0482]
[1727097487065,0.13,63250.0,63249.0,0.3608]
[1727097487266,0.13,63250.0,63249.0,0.439864]
[1727097487267,0.209063,63250.0,63249.0,0.439864]
[1727097487668,0.209058,63254.0,63253.0,0.079059]
[1727097488373,0.3608,63258.0,63257.0,0.079054]
[1727097490202,0.3688,63258.0,63257.0,0.079054]
[1727097491391,0.3788,63258.0,63257.0,0.080054]
[1727097492201,0.018,63258.0,63257.0,0.440854]
[1727097492408,0.01,63258.0,63257.0,0.440854]
[1727097492612,0.017,63258.0,63257.0,0.487554]
[1727097493297,0.01,63258.0,63257.0,0.487554]
[1727097493610,0.018,63258.0,63257.0,0.487554]
[1727097493897,0.0037,63267.0,63266.0,0.079043]
[1727097494221,0.0037,63276.0,63275.0,0.079032]
[1727097494498,0.079027,63279.0,63276.0,0.079029]
[1727097495298,0.158057,63278.0,63272.0,0.079034]
[1727097495609,0.014,63276.0,63275.0,0.001]
[1727097495995,0.014,63276.0,63275.0,0.210032]
[1727097497111,0.028,63276.0,63275.0,0.081032]
[1727097497490,0.014,63276.0,63275.0,0.080032]
[1727097498103,0.02,63276.0,63275.0,0.211032]
[1727097498302,0.02,63276.0,63275.0,0.685152]
[1727097499492,0.006,63276.0,63275.0,0.685152]
[1727097499806,0.02,63276.0,63275.0,0.764184]
[1727097500100,0.02,63276.0,63275.0,2.04256804]
[1727097500408,0.0037,63284.0,63283.0,0.158044]
[1727097500590,0.0037,63293.0,63283.0,0.569822]
[1727097500793,0.079008,63294.0,63290.0,0.079012]
[1727097500992,0.079008,63294.0,63291.0,1.5]
[1727097501190,0.3608,63298.0,63293.0,0.13]
[1727097501902,0.078999,63302.0,63297.0,0.13]
[1727097502199,0.179,63308.0,63299.0,0.079001]
[1727097502391,0.049,63308.0,63299.0,0.079001]
[1727097502789,0.049,63308.0,63297.0,0.13]
[1727097502999,0.078999,63302.0,63297.0,0.13]
[1727097503204,0.079,63301.0,63297.0,0.079004]
[1727097503407,0.079001,63300.0,63295.0,0.3608]
[1727097503604,0.209001,63300.0,63295.0,0.3608]
[1727097504101,0.209001,63300.0,63297.0,0.001]
[1727097504893,0.079003,63298.0,63297.0,0.001]
[1727097506006,0.158006,63298.0,63297.0,0.001]
[1727097506206,0.079003,63298.0,63297.0,0.001]
[1727097506402,0.079003,63298.0,63283.0,0.0037]
[1727097506606,0.079017,63287.0,63286.0,0.079018]
[1727097508834,0.3608,63292.0,63291.0,0.079012]
[1727097509105,0.3608,63299.0,63297.0,0.079004]
[1727097509106,0.001,63298.0,63297.0,0.079004]
[1727097509304,0.001,63298.0,63297.0,0.075304]
[1727097509609,0.3608,63299.0,63297.0,0.075304]
[1727097509805,0.02561318,63298.0,63295.0,0.12625858]
[1727097510102,0.09347492,63296.0,63295.0,0.079007]
[1727097510302,0.02561318,63298.0,63295.0,0.079007]
[1727097510503,0.441962,63299.0,63295.0,0.079007]
[1727097510504,0.02561318,63297.0,63295.0,0.079007]
[1727097510702,0.441962,63299.0,63295.0,0.079007]
[1727097510703,0.02561341,63296.0,63295.0,0.079007]
[1727097510899,0.02561344,63298.0,63291.0,0.131]
[1727097511102,0.09345914,63295.0,63294.0,0.079008]
[1727097511298,0.22345914,63295.0,63291.0,0.001]
[1727097511500,0.0934374,63293.0,63291.0,0.001]
[1727097511698,0.10462344,63292.0,63291.0,0.001]
[1727097511899,0.1980603,63292.0,63291.0,0.001]
[1727097512306,0.1190503,63292.0,63290.0,0.3608]
[1727097512509,0.10462544,63291.0,63290.0,0.439813]
[1727097513806,0.10562544,63291.0,63290.0,0.440813]
[1727097514003,0.10962544,63291.0,63290.0,0.441813]
[1727097515412,0.10862544,63291.0,63290.0,0.440813]
[1727097515612,0.10962544,63291.0,63290.0,0.441813]
[1727097515809,0.31463744,63291.0,63290.0,0.3618]
[1727097516115,0.31863744,63291.0,63290.0,0.002]
[1727097516409,0.36593632,63291.0,63290.0,0.002]
[1727097517110,0.36193632,63291.0,63290.0,0.001]
[1727097517314,0.36593632,63291.0,63290.0,0.002]
[1727097517907,0.293024,63291.0,63290.0,0.002]
[1727097520216,0.653824,63291.0,63290.0,0.002]
[1727097520414,0.293024,63291.0,63290.0,0.002]
[1727097520714,0.653824,63291.0,63290.0,0.002]
[1727097522011,0.079013,63290.0,63289.0,0.079013]
[1727097523714,0.080013,63290.0,63289.0,0.080013]
[1727097524222,0.084013,63290.0,63289.0,0.081013]
[1727097524621,0.163026,63290.0,63289.0,0.081013]
[1727097524821,0.163026,63290.0,63289.0,0.002]
[1727097525019,0.079026,63283.0,63282.0,0.079022]
[1727097525620,0.079022,63283.0,63277.0,0.079029]
[1727097525824,0.4908,63278.0,63274.0,0.00237063]
[1727097526123,0.079042,63268.0,63267.0,0.07904]
[1727097526309,0.209042,63268.0,63267.0,0.07904]
[1727097527815,0.209042,63268.0,63267.0,0.09004]
[1727097528417,0.209042,63268.0,63267.0,0.07904]
[1727097529024,0.209042,63268.0,63267.0,0.08804]
[1727097529322,0.209042,63268.0,63267.0,0.009]
[1727097529534,0.079045,63265.0,63264.0,0.079044]
[1727097530822,0.079045,63265.0,63264.0,0.080044]
[1727097531024,0.079045,63265.0,63264.0,0.083044]
[1727097534927,0.36288001,63268.0,63267.0,0.079042]
[1727097535115,0.09349516,63275.0,63264.0,0.004]
[1727097535422,0.079037,63271.0,63264.0,0.3648]
[1727097536531,0.079037,63271.0,63269.0,0.079038]
[1727097537024,0.079037,63271.0,63270.0,0.079038]
[1727097538434,0.082037,63271.0,63270.0,0.079038]
[1727097539723,0.084037,63271.0,63270.0,0.079038]
[1727097540223,0.082037,63271.0,63270.0,0.079038]
[1727097540419,0.084037,63271.0,63270.0,0.079038]
[1727097542015,0.07904,63268.0,63267.0,0.079041]
[1727097542219,0.3608,63268.0,63261.0,0.3608]
[1727097542437,0.079042,63267.0,63266.0,0.079042]
[1727097543414,0.3608,63268.0,63261.0,0.37663615]
[1727097543619,0.005,63271.0,63270.0,0.079038]
[1727097544048,0.079033,63274.0,63273.0,0.079034]
[1727097544623,0.3608,63281.0,63268.0,0.0947]
[1727097544624,0.4908,63281.0,63268.0,0.0947]
[1727097544827,0.079032,63275.0,63268.0,0.0947]
[1727097545028,0.3608,63276.0,63275.0,0.079032]
[1727097545238,0.00204,63281.0,63280.0,0.079025]
[1727097545424,0.00237111,63282.0,63281.0,0.079024]
[1727097545818,0.00237111,63282.0,63281.0,0.174524]
[1727097547237,0.00437111,63282.0,63281.0,0.174524]
[1727097547418,0.00437111,63282.0,63281.0,1.674524]
[1727097548528,0.00737111,63282.0,63281.0,1.674524]
[1727097549037,0.00737111,63282.0,63281.0,2.148604]
[1727097549221,0.00337111,63282.0,63281.0,2.227628]
[1727097549427,0.09349516,63289.0,63288.0,0.079015]
[1727097549731,0.09349516,63289.0,63286.0,0.079018]
[1727097549732,0.09349516,63292.0,63291.0,0.079012]
[1727097550523,0.02561613,63292.0,63291.0,0.079012]
[1727097550722,0.09349516,63293.0,63291.0,0.079012]
[1727097550921,0.3608,63292.0,63288.0,0.001]
[1727097551128,0.3608,63292.0,63288.0,0.002]
[1727097551129,0.133,63289.0,63288.0,0.002]
[1727097551332,0.15861613,63289.0,63288.0,0.001]
[1727097551529,0.23763013,63289.0,63288.0,0.001]
[1727097551833,0.079025,63280.0,63278.0,0.00237037]
[1727097553235,0.02562094,63279.0,63278.0,0.00237037]
[1727097553447,0.02562094,63279.0,63278.0,0.08139837]
[1727097553736,0.30288306,63282.0,63278.0,0.08139837]
[1727097553933,0.02562061,63281.0,63278.0,0.08139837]
[1727097554237,0.02562061,63281.0,63280.0,0.079025]
[1727097554638,0.09386006,63282.0,63280.0,0.079025]
[1727097555134,0.004,63282.0,63280.0,0.079025]
[1727097555725,0.004,63282.0,63281.0,0.079024]
[1727097556838,0.079024,63281.0,63280.0,0.001]
[1727097557035,0.209024,63281.0,63280.0,0.001]
[1727097558430,0.209024,63281.0,63280.0,0.080025]
[1727097558639,0.004,63282.0,63281.0,0.079024]
[1727097559445,0.36292,63284.0,63283.0,0.079022]
[1727097559639,0.3608,63284.0,63283.0,0.079022]
[1727097559945,0.082712,63291.0,63288.0,0.079015]
[1727097560140,0.079012,63291.0,63289.0,0.079014]
[1727097561239,0.079012,63291.0,63289.0,0.001]
[1727097561240,0.13,63290.0,63289.0,0.001]
[1727097561434,0.209013,63290.0,63289.0,0.001]
[1727097561640,0.288026,63290.0,63289.0,0.001]
[1727097561940,0.77026966,63290.0,63289.0,0.002]
[1727097562140,0.77026966,63290.0,63289.0,0.003]
[1727097562141,1.11426966,63290.0,63289.0,0.003]
[1727097562338,1.11426966,63290.0,63283.0,0.079021]
[1727097562339,0.07902,63284.0,63283.0,0.079021]
[1727097562542,0.66377773,63284.0,63283.0,0.079021]
[1727097562742,0.689398,63284.0,63283.0,0.079021]
[1727097563144,0.59544027,63284.0,63283.0,0.079021]
[1727097563349,0.46544027,63284.0,63283.0,0.079021]
[1727097564344,0.46644027,63284.0,63283.0,0.080021]
[1727097564836,0.47044027,63284.0,63283.0,0.079021]
[1727097565031,0.39242027,63284.0,63283.0,0.080021]
[1727097565246,0.03162027,63284.0,63283.0,0.080021]
[1727097565633,0.001,63284.0,63283.0,0.080021]
[1727097565839,0.006,63284.0,63283.0,0.080021]
[1727097566535,0.005,63284.0,63283.0,0.079021]
[1727097566850,0.008,63284.0,63283.0,0.080021]
[1727097568341,0.003,63284.0,63283.0,0.080021]
[1727097568547,0.16361881,63284.0,63283.0,0.080021]
[1727097569945,0.138,63284.0,63283.0,0.080021]
[1727097570144,0.4988,63284.0,63283.0,0.080021]
[1727097570445,0.3688,63284.0,63283.0,0.080021]
[1727097571042,0.008,63284.0,63283.0,0.519843]
[1727097571243,0.004,63284.0,63283.0,0.519843]
[1727097571551,0.004,63284.0,63283.0,0.598865]
[1727097571739,0.004,63284.0,63283.0,1.672905]
[1727097571939,0.3608,63290.0,63283.0,1.672905]
[1727097571940,0.3608,63290.0,63289.0,0.158028]
[1727097572147,0.3608,63290.0,63289.0,0.288028]
[1727097572738,0.0037,63299.0,63298.0,0.079003]
[1727097572943,0.078996,63304.0,63297.0,0.13]
[1727097573244,0.078996,63304.0,63300.0,0.079]
[1727097573841,0.078993,63306.0,63302.0,0.078998]
[1727097574256,0.078994,63305.0,63302.0,0.078998]
[1727097575151,0.078994,63305.0,63302.0,0.079998]
[1727097575350,0.0497,63310.0,63302.0,0.079998]
[1727097575655,0.0497,63310.0,63302.0,0.080998]
[1727097576154,0.44216759,63303.0,63302.0,0.002]
[1727097576355,0.57216759,63303.0,63302.0,0.002]
[1727097576664,0.49317059,63303.0,63302.0,0.002]
[1727097576957,0.57216759,63303.0,63302.0,0.002]
[1727097577851,0.65116459,63303.0,63302.0,0.002]
[1727097578046,0.079009,63293.0,63292.0,0.07901]
[1727097578356,0.209009,63293.0,63292.0,0.07901]
[1727097578857,0.079009,63293.0,63292.0,0.07901]
[1727097580564,0.080009,63293.0,63292.0,0.08001]
[1727097580859,0.002,63293.0,63292.0,0.08101]
[1727097585061,0.0276152,63293.0,63292.0,0.08101]
[1727097585557,0.07540075,63293.0,63292.0,0.08101]
[1727097586756,0.0276152,63293.0,63292.0,0.08101]
[1727097591584,0.0276152,63293.0,63292.0,0.12881]
[1727097591979,0.002,63293.0,63292.0,0.12881]
[1727097592170,0.002,63293.0,63292.0,0.20782]
[1727097594471,0.002,63293.0,63292.0,0.27087221]
[1727097596172,0.002,63293.0,63292.0,0.19186221]
[1727097596372,0.002,63293.0,63292.0,0.14406221]
[1727097597585,0.002,63293.0,63292.0,0.08101]
[1727097598689,0.002,63293.0,63292.0,0.14414001]
[1727097599475,0.002,63293.0,63292.0,0.08101]
[1727097600178,0.09615249,63293.0,63292.0,0.08101]
[1727097600576,0.02761447,63293.0,63292.0,0.08101]
[1727097601899,0.23353547,63293.0,63292.0,0.002]
[1727097602217,0.079019,63285.0,63283.0,0.079021]
[1727097602376,0.02561447,63284.0,63283.0,0.079021]
[1727097602577,0.079016,63288.0,63284.0,0.07902]
[1727097602783,0.15217555,63287.0,63285.0,0.079019]
[1727097602978,0.02561817,63286.0,63285.0,0.079019]
[1727097603376,0.02561796,63289.0,63288.0,0.079015]
[1727097603578,0.07315418,63289.0,63288.0,0.079015]
[1727097603882,0.15216818,63289.0,63288.0,0.079015]
[1727097604073,0.07315418,63289.0,63288.0,0.079015]
[1727097604792,0.07315418,63289.0,63288.0,0.210015]
[1727097604793,0.07415418,63289.0,63288.0,0.210015]
[1727097605084,0.09512979,63289.0,63288.0,0.28903]
[1727097605285,0.001,63289.0,63288.0,0.28903]
[1727097605501,0.001,63289.0,63288.0,1.78903]
[1727097605685,0.001,63289.0,63288.0,2.86303]
[1727097605987,0.004,63289.0,63288.0,2.86403]
[1727097607084,0.004,63289.0,63288.0,3.07884567]
[1727097607285,0.3608,63297.0,63295.0,0.079007]
[1727097607489,0.3608,63297.0,63296.0,0.079005]
[1727097608787,0.3618,63297.0,63296.0,0.080005]
[1727097609889,0.3618,63297.0,63296.0,0.081005]
[1727097610890,0.3618,63297.0,63296.0,0.14414927]
[1727097611096,0.3618,63297.0,63296.0,0.16885131]
[1727097612499,0.001,63297.0,63296.0,0.24785631]
[1727097612698,0.001,63297.0,63296.0,0.42095597]
[1727097612897,0.001,63297.0,63296.0,0.56542838]
[1727097614999,0.001,63297.0,63296.0,0.53317069]
[1727097615511,0.001,63297.0,63296.0,0.47005597]
[1727097617103,0.001,63297.0,63296.0,0.39105097]
[1727097617303,0.001,63297.0,63296.0,0.34195097]
[1727097617502,0.001,63297.0,63296.0,0.38927586]
[1727097618803,0.001,63297.0,63296.0,0.36457382]
[1727097619508,0.001,63297.0,63296.0,0.31724893]
[1727097620011,0.001,63297.0,63296.0,0.36457382]
[1727097621995,0.001,63297.0,63296.0,0.49457382]
[1727097622195,0.001,63297.0,63296.0,0.44724893]
[1727097622920,0.02661166,63297.0,63296.0,0.23824393]
[1727097623209,0.02661166,63297.0,63295.0,0.079006]
[1727097623210,0.15362495,63297.0,63295.0,0.079006]
[1727097623412,0.33428309,63297.0,63296.0,0.079005]
[1727097623712,0.20934005,63297.0,63296.0,0.079005]
[1727097624005,0.13033605,63297.0,63296.0,0.079005]
[1727097624800,0.12933605,63297.0,63296.0,0.079005]
[1727097625004,0.13033605,63297.0,63296.0,0.079005]
[1727097625400,0.12933605,63297.0,63296.0,0.079005]
[1727097625601,0.13033605,63297.0,63296.0,0.081005]
[1727097625897,0.13003068,63297.0,63296.0,0.10570695]
[1727097626411,0.13003068,63297.0,63296.0,0.081005]
[1727097627407,0.13003068,63297.0,63296.0,0.10570695]
[1727097629117,0.13003068,63297.0,63296.0,0.081005]
[1727097629298,0.13003068,63297.0,63296.0,0.10570692]
[1727097629502,0.13003068,63297.0,63296.0,0.02670192]
[1727097629816,0.13003068,63297.0,63284.0,0.09502459]
[1727097629817,1.34601724,63297.0,63284.0,0.09502459]
[1727097630001,0.10968311,63285.0,63284.0,0.07902]
[1727097630201,0.3608,63290.0,63284.0,0.07902]
[1727097630418,0.0476,63287.0,63284.0,0.07902]
[1727097630603,0.126617,63287.0,63285.0,0.079019]
[1727097630798,0.0476,63287.0,63286.0,0.079018]
[1727097631013,0.0037,63293.0,63284.0,0.17732489]
[1727097631014,0.0037,63293.0,63291.0,0.079011]
[1727097631309,0.079007,63295.0,63293.0,0.079009]
[1727097631812,0.079007,63295.0,63288.0,0.1773174]
[1727097631813,0.0454,63296.0,63294.0,0.079008]
[1727097632117,0.124406,63296.0,63294.0,0.079008]
[1727097632302,0.079007,63295.0,63292.0,0.13]
[1727097632715,0.081007,63295.0,63293.0,0.002]
[1727097632908,0.002,63295.0,63294.0,0.079008]
[1727097634300,0.0475,63305.0,63294.0,0.079008]
[1727097634502,0.002,63295.0,63294.0,0.47462202]
[1727097634715,0.002,63295.0,63294.0,0.56992572]
[1727097635207,0.002,63296.0,63295.0,0.079007]
[1727097635413,0.0037,63303.0,63302.0,0.078998]
[1727097635605,0.0475,63305.0,63303.0,0.078997]
[1727097635806,0.0475,63305.0,63303.0,1.578997]
[1727097636903,0.078989,63309.0,63303.0,1.578997]
[1727097637112,0.61591822,63304.0,63303.0,1.578997]
[1727097638515,0.61691822,63304.0,63303.0,1.579997]
[1727097639518,0.4935661,63304.0,63303.0,1.580997]
[1727097640711,0.14472114,63312.0,63308.0,0.23697]
[1727097641016,0.10978577,63313.0,63311.0,0.4908]
[1727097641309,0.14102114,63320.0,63315.0,0.078982]
[1727097641310,0.10978577,63316.0,63315.0,0.078982]
[1727097641615,0.10978577,63318.0,63315.0,0.208982]
[1727097641820,0.10978577,63318.0,63317.0,0.208979]
[1727097642411,0.10978577,63320.0,63319.0,0.078977]
[1727097642919,0.3608,63321.0,63320.0,0.078975]
[1727097643219,0.3608,63321.0,63320.0,0.03312833]
[1727097644821,0.3608,63321.0,63320.0,0.03412833]
[1727097645617,0.3608,63321.0,63320.0,0.03512833]
[1727097649726,0.439774,63321.0,63320.0,0.002]
[1727097649928,0.569774,63321.0,63320.0,0.002]
[1727097651722,0.569774,63321.0,63320.0,0.080975]
[1727097651955,0.569774,63321.0,63299.0,0.079001]
[1727097651956,0.078983,63316.0,63305.0,0.1337]
[1727097652239,0.078984,63313.0,63312.0,0.078983]
[1727097652529,0.12494421,63313.0,63312.0,0.078983]
[1727097654030,0.12594421,63313.0,63312.0,0.079983]
[1727097654524,0.12694421,63313.0,63312.0,0.080983]
[1727097655027,0.002,63313.0,63312.0,0.080983]
[1727097655825,0.02760658,63313.0,63312.0,0.080983]
[1727097656924,0.02760658,63313.0,63312.0,0.159968]
[1727097656925,0.002,63313.0,63312.0,0.159968]
[1727097657833,0.0938334,63318.0,63317.0,0.078979]
[1727097658027,0.0938334,63318.0,63317.0,0.208979]
[1727097658342,0.0938334,63319.0,63318.0,0.078978]
[1727097658633,0.0938334,63319.0,63318.0,0.208978]
[1727097659230,0.0938334,63319.0,63318.0,0.287956]
[1727097659430,0.0938334,63321.0,63320.0,0.078975]
[1727097659635,0.11943583,63321.0,63320.0,0.28795]
[1727097659930,0.0938334,63324.0,63321.0,0.078974]
[1727097660135,0.0938334,63324.0,63323.0,0.4908]
[1727097660337,0.0037,63332.0,63323.0,1.9908]
[1727097660531,0.08132733,63334.0,63329.0,0.13]
[1727097661225,0.08132733,63334.0,63324.0,0.0951]
[1727097661226,0.00236933,63334.0,63333.0,0.13]
[1727097661436,0.00236933,63334.0,63333.0,0.208959]
[1727097663331,0.439751,63340.0,63336.0,0.078955]
[1727097663632,0.3608,63340.0,63337.0,0.078953]
[1727097664748,0.3608,63340.0,63338.0,0.078953]
[1727097664749,0.3618,63340.0,63338.0,0.078953]
[1727097665126,0.3608,63340.0,63339.0,0.078952]
[1727097665327,0.3618,63340.0,63339.0,0.078952]
[1727097666941,0.440751,63340.0,63338.0,0.001]
[1727097667237,0.440751,63340.0,63339.0,0.001]
[1727097667429,0.51230534,63340.0,63339.0,0.001]
[1727097667634,0.51330534,63340.0,63339.0,0.002]
[1727097668230,0.51330534,63340.0,63339.0,0.001]
[1727097668543,0.51330434,63340.0,63339.0,0.079952]
[1727097669231,0.51330434,63340.0,63339.0,0.078952]
[1727097670033,0.51330434,63340.0,63339.0,0.080952]
[1727097670942,0.62292511,63340.0,63339.0,0.080952]
[1727097671143,0.51330434,63340.0,63339.0,0.080952]
[1727097672039,0.44075,63340.0,63339.0,0.080952]
[1727097672443,0.51329658,63340.0,63339.0,0.080952]
[1727097672642,0.43434658,63340.0,63339.0,0.080952]
[1727097673031,0.3618,63340.0,63339.0,0.080952]
[1727097673239,0.43435415,63340.0,63339.0,0.080952]
[1727097674242,0.02659863,63340.0,63339.0,0.650704]
[1727097674442,0.02659863,63340.0,63339.0,0.289904]
[1727097675037,0.02659863,63340.0,63339.0,0.210952]
[1727097675243,0.02659863,63340.0,63339.0,0.0078152]
[1727097675443,0.16762257,63340.0,63339.0,0.0078152]
[1727097675631,0.16762257,63340.0,63339.0,0.0088152]
[1727097675836,0.02659863,63340.0,63339.0,0.0088152]
[1727097676033,0.02659863,63340.0,63339.0,0.0877672]
[1727097676336,0.12888178,63340.0,63339.0,1.5877672]
[1727097676844,0.12888178,63340.0,63339.0,1.5887672]
[1727097678946,0.12888178,63340.0,63339.0,1.60479498]
[1727097679147,0.02659863,63340.0,63339.0,1.60479498]
[1727097679644,0.15183419,63340.0,63339.0,1.60479498]
[1727097679850,0.18118834,63340.0,63339.0,1.60479498]
[1727097680148,0.25411734,63340.0,63339.0,1.60479498]
[1727097680345,0.12888178,63340.0,63339.0,1.51802778]
[1727097680547,0.18894726,63340.0,63339.0,0.01802778]
[1727097680746,0.18897804,63340.0,63339.0,0.09697978]
[1727097680936,0.18897804,63340.0,63339.0,1.59697978]
[1727097681541,0.18897804,63340.0,63339.0,1.72697978]
[1727097682353,0.001,63340.0,63339.0,1.72697978]
[1727097686139,0.001,63340.0,63339.0,0.22697978]
[1727097686542,0.02659615,63340.0,63339.0,0.22697978]
[1727097687153,0.001,63340.0,63339.0,0.22697978]
[1727097687353,0.02659573,63340.0,63339.0,0.22697978]
[1727097687547,0.02659608,63340.0,63339.0,0.22697978]
[1727097689551,0.02659608,63340.0,63339.0,0.30593178]
[1727097690250,0.001,63340.0,63339.0,0.30593178]
[1727097690560,0.001,63340.0,63339.0,1.80593178]
[1727097691642,0.001,63340.0,63339.0,1.88488378]
[1727097691941,0.001,63340.0,63339.0,2.12025052]
[1727097692750,0.001,63340.0,63339.0,2.16745875]
[1727097693166,0.001,63340.0,63339.0,3.24109875]
[1727097695357,0.001,63340.0,63339.0,2.64109875]
[1727097695555,0.001,63340.0,63339.0,3.19389052]
[1727097695860,0.09763424,63353.0,63352.0,0.078935]
[1727097695861,0.0037,63353.0,63352.0,0.078935]
[1727097696153,0.3608,63361.0,63352.0,0.80779479]
[1727097696359,0.3608,63361.0,63360.0,0.078925]
[1727097696950,0.3608,63361.0,63360.0,1.578925]
[1727097697457,0.3608,63361.0,63360.0,1.62620943]
[1727097697861,0.3618,63361.0,63360.0,1.62720943]
[1727097698252,0.3618,63361.0,63360.0,1.579925]
[1727097698466,0.3628,63361.0,63360.0,1.579925]
[1727097698659,0.3628,63361.0,63360.0,1.501]
[1727097698960,0.441724,63361.0,63360.0,1.501]
[1727097699350,0.440724,63361.0,63360.0,0.002]
[1727097699751,0.649648,63361.0,63360.0,0.002]
[1727097700961,1.123128,63361.0,63360.0,0.002]
[1727097701259,1.723128,63361.0,63360.0,0.002]
[1727097701459,0.078934,63354.0,63353.0,0.078934]
[1727097701659,0.439734,63354.0,63353.0,0.078934]
[1727097701869,0.078934,63354.0,63353.0,0.078934]
[1727097703167,0.079934,63354.0,63353.0,0.079934]
[1727097704062,0.079934,63354.0,63353.0,0.159868]
[1727097704063,0.003,63354.0,63353.0,0.159868]
[1727097704263,0.003,63354.0,63353.0,0.42912073]
[1727097704563,0.003,63354.0,63353.0,0.58766202]
[1727097704754,0.003,63354.0,63353.0,0.68207848]
[1727097705270,0.003,63354.0,63353.0,0.58766202]